fUSD/lending_fUSD_20251120
["ID","MTS","AMOUNT","RATE_DAILY","PERIOD"]
[394463101,1763602630738,165.11025079,0.00042039,120]
[394463102,1763602721471,370.0,0.00042039,120]
[394463106,1763602808462,265.29449235,0.00042035,120]
[394463108,1763602899594,1852.42,0.00015796,2]
[394463113,1763602993175,500.0,0.00029041,120]
[394463114,1763603000850,500.0,0.00029041,120]
[394463115,1763603001245,513.523591,0.00031041,120]
[394463133,1763603094714,500.0,0.00042035,120]
[394463134,1763603094964,500.0,0.00042035,120]
[394463135,1763603095197,500.0,0.00042035,120]
[394463136,1763603095436,500.0,0.00042035,120]
[394463137,1763603095672,500.0,0.00042035,120]
[394463138,1763603095912,500.0,0.00042035,120]
[394463139,1763603096183,175.77227816,0.00042035,120]
[394463140,1763603100541,155.86031993,0.00042035,120]
[394463142,1763603133659,231.709852,0.00042035,40]
[394463143,1763603138450,3525.71386859,0.00042035,30]
[394463144,1763603188120,163.0,0.000328,120]
[394463145,1763603189077,163.0,0.000328,120]
[394463146,1763603191141,-150.0,0.000162,2]
[394463147,1763603191166,-2127.87703103,0.00016473,2]
[394463148,1763603191191,-521.61016732,0.00016473,2]
[394463149,1763603191217,-222.41932101,0.0001649,2]
[394463150,1763603191240,-300.0,0.00016511,2]
[394463151,1763603191261,-2004.99527492,0.0001656,2]
[394463153,1763603222170,554.75628257,0.00032876,120]
[394463158,1763603278893,3000.6533861,0.00042035,30]
[394463159,1763603283542,250.0,0.00016012,2]
[394463160,1763603301022,151.000004,0.00042035,40]
[394463161,1763603343769,457.21,0.00013699,2]
[394463168,1763603432171,-447.0,0.00016571,2]
[394463169,1763603432180,-1200.0,0.00016571,2]
[394463170,1763603432190,-300.0,0.00016571,2]
[394463171,1763603432199,-250.0,0.00016571,2]
[394463172,1763603432209,-255.16775569,0.00016572,2]
[394463173,1763603432219,-230.1203003,0.00016572,2]
[394463174,1763603432228,-500.0,0.00016572,2]
[394463175,1763603432237,-500.0,0.00016572,2]
[394463176,1763603432246,-500.0,0.00016572,2]
[394463177,1763603432255,-500.0,0.00016572,2]
[394463178,1763603432265,-500.0,0.00016572,2]
[394463179,1763603432274,-500.0,0.00016572,2]
[394463180,1763603432283,-500.0,0.00016572,2]
[394463181,1763603432293,-500.0,0.00016572,2]
[394463182,1763603432302,-500.0,0.00016572,2]
[394463183,1763603432312,-500.0,0.00016572,2]
[394463184,1763603432321,-500.0,0.00016572,2]
[394463185,1763603432330,-500.0,0.00016572,2]
[394463186,1763603432339,-500.0,0.00016572,2]
[394463187,1763603432350,-500.0,0.00016572,2]
[394463188,1763603432363,-217.71194401,0.00016572,2]
[394463189,1763603432375,-282.28805599,0.00016572,2]
[394463190,1763603432387,-500.0,0.00016572,2]
[394463191,1763603432397,-500.0,0.00016572,2]
[394463192,1763603432406,-500.0,0.00016572,2]
[394463193,1763603432416,-500.0,0.00016572,2]
[394463194,1763603432425,-500.0,0.00016572,2]
[394463195,1763603432437,-500.0,0.00016572,2]
[394463197,1763603432446,-500.0,0.00016572,2]
[394463199,1763603432455,-500.0,0.00016572,2]
[394463200,1763603432465,-500.0,0.00016572,2]
[394463201,1763603432475,-500.0,0.00016572,2]
[394463202,1763603432484,-500.0,0.00016572,2]
[394463203,1763603432493,-500.0,0.00016572,2]
[394463206,1763603432502,-500.0,0.00016572,2]
[394463209,1763603432512,-500.0,0.00016572,2]
[394463212,1763603432521,-500.0,0.00016572,2]
[394463215,1763603432531,-500.0,0.00016572,2]
[394463217,1763603432540,-500.0,0.00016572,2]
[394463219,1763603432549,-500.0,0.00016572,2]
[394463221,1763603432558,-500.0,0.00016572,2]
[394463223,1763603432568,-500.0,0.00016572,2]
[394463225,1763603432577,-500.0,0.00016572,2]
[394463232,1763603432734,-500.0,0.00016572,2]
[394463233,1763603432753,-500.0,0.00016572,2]
[394463234,1763603432762,-500.0,0.00016572,2]
[394463235,1763603432772,-484.65203389,0.00016572,2]
[394463236,1763603432781,-500.0,0.00016572,2]
[394463237,1763603432790,-500.0,0.00016572,2]
[394463238,1763603432800,-500.0,0.00016572,2]
[394463239,1763603432809,-500.0,0.00016572,2]
[394463240,1763603432818,-500.0,0.00016572,2]
[394463241,1763603432827,-500.0,0.00016572,2]
[394463242,1763603432836,-500.0,0.00016572,2]
[394463243,1763603432846,-500.0,0.00016572,2]
[394463244,1763603432855,-500.0,0.00016572,2]
[394463245,1763603432865,-500.0,0.00016572,2]
[394463246,1763603432875,-500.0,0.00016572,2]
[394463247,1763603432886,-500.0,0.00016572,2]
[394463248,1763603432895,-500.0,0.00016572,2]
[394463249,1763603432905,-500.0,0.00016572,2]
[394463250,1763603432914,-500.0,0.00016572,2]
[394463251,1763603432925,-500.0,0.00016572,2]
[394463252,1763603432933,-473.69569146,0.00016572,2]
[394463253,1763603432945,-26.30430854,0.00016572,2]
[394463254,1763603432955,-500.0,0.00016572,2]
[394463255,1763603432964,-500.0,0.00016572,2]
[394463256,1763603432974,-500.0,0.00016572,2]
[394463257,1763603432983,-377.70805683,0.00016572,2]
[394463258,1763603432993,-500.0,0.00016572,2]
[394463259,1763603433002,-500.0,0.00016572,2]
[394463260,1763603433012,-500.0,0.00016572,2]
[394463261,1763603433021,-500.0,0.00016572,2]
[394463262,1763603433031,-500.0,0.00016572,2]
[394463263,1763603433041,-500.0,0.00016572,2]
[394463264,1763603433051,-500.0,0.00016572,2]
[394463265,1763603433060,-500.0,0.00016572,2]
[394463266,1763603433070,-500.0,0.00016572,2]
[394463267,1763603433079,-500.0,0.00016572,2]
[394463268,1763603433088,-500.0,0.00016572,2]
[394463269,1763603433097,-500.0,0.00016572,2]
[394463270,1763603433106,-500.0,0.00016572,2]
[394463271,1763603433116,-500.0,0.00016572,2]
[394463272,1763603433125,-442.56935228,0.00016572,2]
[394463273,1763603433135,-500.0,0.00016572,2]
[394463274,1763603433144,-500.0,0.00016572,2]
[394463275,1763603433153,-275.02568603,0.00016572,2]
[394463276,1763603433162,-500.0,0.00016572,2]
[394463277,1763603433172,-598.1057062,0.00016572,2]
[394463278,1763603433181,-500.0,0.00016572,2]
[394463279,1763603433191,-9772.72707991,0.00016573,2]
[394463280,1763603433202,-666.0,0.00016573,2]
[394463281,1763603433213,-149973.23483339,0.00016573,2]
[394463282,1763603433224,-1023.14353859,0.00016573,2]
[394463307,1763603438460,-1318.6106491,0.00016573,2]
[394463309,1763603438476,-1972.78274802,0.00016573,2]
[394463311,1763603440220,-1087.8115798,0.00016573,2]
[394463312,1763603443973,-11044.7142521,0.00016573,2]
[394463313,1763603443988,-1115.23961659,0.00016573,2]
[394463315,1763603446580,-514.30449969,0.00016573,2]
[394463316,1763603446739,-647.67,0.00016573,2]
[394463318,1763603467555,182.18,8.075e-05,2]
[394463319,1763603596849,500.0,0.00030136,120]
[394463320,1763603631403,605688.10124724,0.00042035,30]
[394463334,1763603945435,500.0,0.00042035,120]
[394463335,1763603946035,500.0,0.00042035,120]
[394463337,1763604015364,458.16536578,0.00042034,120]
[394463354,1763604127626,200.0,0.00015721,2]
[394463370,1763604263615,166.66,0.00014945,2]
[394463371,1763604264178,166.66,0.0001526,2]
[394463372,1763604264712,166.66,0.00015574,2]
[394463373,1763604264940,166.66,0.00015889,2]
[394463460,1763604384396,158.84502626,0.00042041,120]
[394463526,1763604455147,1000.0,0.00032,120]
[394463527,1763604471057,300.0,0.00017,3]
[394463528,1763604471385,300.0,0.00017,3]
[394463529,1763604471673,300.0,0.00017,3]
[394463530,1763604471954,300.0,0.00017,3]
[394463531,1763604472326,300.0,0.00017,3]
[394463532,1763604491039,200.0,0.00015592,2]
[394463534,1763604589662,192.94997606,0.00042041,30]
[394463535,1763604630756,547.41445011,0.00042041,120]
[394463537,1763604632439,-500.0,0.00016151,2]
[394463538,1763604632449,-493.19395145,0.00016151,2]
[394463539,1763604632459,-122.30604855,0.00016151,2]
[394463540,1763604632492,-59.87395145,0.00016151,2]
[394463541,1763604632502,-150.0,0.000162,2]
[394463542,1763604632512,-166.66,0.00016203,2]
[394463543,1763604632521,-166.67,0.00016224,2]
[394463544,1763604632530,-211.25669493,0.000164,2]
[394463545,1763604632539,-469.44915057,0.00016418,2]
[394463546,1763604632549,-222.41932101,0.00016437,2]
[394463547,1763604632558,-500.0,0.00016438,2]
[394463548,1763604632567,-151.0,0.0001647,2]
[394463549,1763604632576,-550.0,0.00016471,2]
[394463550,1763604632585,-1200.0,0.00016471,2]
[394463551,1763604632595,-300.0,0.00016471,2]
[394463552,1763604632605,-264.76339422,0.00016472,2]
[394463553,1763604632617,-235.23660578,0.00016472,2]
[394463554,1763604632632,-195.44055375,0.00016472,2]
[394463555,1763604632642,-525.84992246,0.00016472,2]
[394463556,1763604632652,-500.0,0.00016472,2]
[394463557,1763604632662,-500.0,0.00016472,2]
[394463558,1763604632672,-500.0,0.00016472,2]
[394463559,1763604632682,-294.73959081,0.00016472,2]
[394463560,1763604632692,-500.0,0.00016472,2]
[394463561,1763604632702,-500.0,0.00016472,2]
[394463562,1763604632712,-500.0,0.00016472,2]
[394463563,1763604632722,-500.0,0.00016472,2]
[394463564,1763604632731,-415.94799635,0.00016472,2]
[394463565,1763604632744,-500.0,0.00016472,2]
[394463566,1763604632753,-500.0,0.00016472,2]
[394463567,1763604632763,-256.35887229,0.00016472,2]
[394463569,1763604638341,-243.64112771,0.00016472,2]
[394463570,1763604638352,-192.04059086,0.00016472,2]
[394463571,1763604638368,-307.95940914,0.00016472,2]
[394463572,1763604638379,-500.0,0.00016472,2]
[394463573,1763604638389,-500.0,0.00016472,2]
[394463574,1763604638399,-533.44455331,0.00016472,2]
[394463575,1763604638409,-344.82368001,0.00016472,2]
[394463576,1763604638419,-500.0,0.00016472,2]
[394463577,1763604638430,-500.0,0.00016472,2]
[394463578,1763604638441,-500.0,0.00016472,2]
[394463579,1763604638451,-500.0,0.00016472,2]
[394463580,1763604638463,-500.0,0.00016472,2]
[394463581,1763604638473,-500.0,0.00016472,2]
[394463582,1763604638483,-500.0,0.00016472,2]
[394463583,1763604638493,-450.0,0.00016472,2]
[394463584,1763604638503,-500.0,0.00016472,2]
[394463585,1763604638513,-500.0,0.00016472,2]
[394463586,1763604638523,-500.0,0.00016472,2]
[394463587,1763604638533,-500.0,0.00016472,2]
[394463588,1763604638544,-500.0,0.00016472,2]
[394463589,1763604638554,-500.0,0.00016472,2]
[394463590,1763604638564,-500.0,0.00016472,2]
[394463591,1763604638574,-500.0,0.00016472,2]
[394463592,1763604638588,-500.0,0.00016472,2]
[394463593,1763604638598,-500.0,0.00016472,2]
[394463594,1763604638610,-500.0,0.00016472,2]
[394463595,1763604638631,-500.0,0.00016472,2]
[394463596,1763604638643,-500.0,0.00016472,2]
[394463597,1763604638654,-500.0,0.00016472,2]
[394463598,1763604638664,-196.66210175,0.00016472,2]
[394463599,1763604638674,-500.0,0.00016472,2]
[394463600,1763604638684,-500.0,0.00016472,2]
[394463601,1763604638694,-500.0,0.00016472,2]
[394463602,1763604638705,-500.0,0.00016472,2]
[394463603,1763604638714,-500.0,0.00016472,2]
[394463604,1763604638725,-500.0,0.00016472,2]
[394463605,1763604638735,-500.0,0.00016472,2]
[394463606,1763604638748,-500.0,0.00016472,2]
[394463607,1763604638758,-500.0,0.00016472,2]
[394463609,1763604638768,-500.0,0.00016472,2]
[394463611,1763604638777,-500.0,0.00016472,2]
[394463612,1763604638788,-500.0,0.00016472,2]
[394463613,1763604638799,-500.0,0.00016472,2]
[394463614,1763604638809,-500.0,0.00016472,2]
[394463615,1763604638821,-500.0,0.00016472,2]
[394463616,1763604638832,-500.0,0.00016472,2]
[394463617,1763604638843,-500.0,0.00016472,2]
[394463618,1763604638853,-500.0,0.00016472,2]
[394463619,1763604638863,-500.0,0.00016472,2]
[394463620,1763604638873,-158.24989483,0.00016472,2]
[394463621,1763604638884,-500.0,0.00016472,2]
[394463622,1763604638894,-500.0,0.00016472,2]
[394463623,1763604638904,-500.0,0.00016472,2]
[394463624,1763604638914,-500.0,0.00016472,2]
[394463625,1763604638925,-500.0,0.00016472,2]
[394463626,1763604638935,-500.0,0.00016472,2]
[394463627,1763604638945,-500.0,0.00016472,2]
[394463628,1763604638955,-500.0,0.00016472,2]
[394463629,1763604638966,-500.0,0.00016472,2]
[394463630,1763604638976,-500.0,0.00016472,2]
[394463631,1763604638986,-500.0,0.00016472,2]
[394463632,1763604639000,-500.0,0.00016472,2]
[394463633,1763604639010,-500.0,0.00016472,2]
[394463634,1763604639021,-500.0,0.00016472,2]
[394463635,1763604639031,-500.0,0.00016472,2]
[394463636,1763604639041,-500.0,0.00016472,2]
[394463637,1763604639051,-500.0,0.00016472,2]
[394463638,1763604639061,-500.0,0.00016472,2]
[394463639,1763604639071,-500.0,0.00016472,2]
[394463640,1763604639254,-500.0,0.00016472,2]
[394463641,1763604639268,-500.0,0.00016472,2]
[394463642,1763604639278,-500.0,0.00016472,2]
[394463643,1763604639287,-500.0,0.00016472,2]
[394463644,1763604639297,-415.82498948,0.00016472,2]
[394463645,1763604639306,-500.0,0.00016472,2]
[394463646,1763604639315,-500.0,0.00016472,2]
[394463647,1763604639324,-500.0,0.00016472,2]
[394463648,1763604639337,-150.56312027,0.00016472,2]
[394463649,1763604639347,-349.65790772,0.00016472,2]
[394463650,1763604639357,-436.00287873,0.00016472,2]
[394463651,1763604639366,-500.0,0.00016472,2]
[394463652,1763604639377,-581.50967417,0.00016472,2]
[394463653,1763604639386,-500.0,0.00016472,2]
[394463654,1763604639396,-550.0,0.00016472,2]
[394463655,1763604639405,-500.0,0.00016472,2]
[394463656,1763604639415,-500.0,0.00016472,2]
[394463657,1763604639424,-500.0,0.00016472,2]
[394463658,1763604639433,-500.0,0.00016472,2]
[394463659,1763604639443,-500.0,0.00016472,2]
[394463660,1763604639452,-500.0,0.00016472,2]
[394463661,1763604639461,-1561.63,0.00016472,2]
[394463662,1763604639471,-500.0,0.00016473,2]
[394463663,1763604639480,-556.6439271,0.00016473,2]
[394463664,1763604639490,-501.39731869,0.00016473,2]
[394463665,1763604639500,-500.0,0.00016473,2]
[394463666,1763604639509,-500.0,0.00016473,2]
[394463667,1763604639519,-500.0,0.00016473,2]
[394463668,1763604639528,-501.77243288,0.00016473,2]
[394463669,1763604639538,-504.15701268,0.00016473,2]
[394463670,1763604639547,-500.0,0.00016473,2]
[394463671,1763604639557,-505.1097147,0.00016473,2]
[394463672,1763604639566,-170.60342109,0.00016473,2]
[394463673,1763604639576,-487.16177681,0.00016473,2]
[394463674,1763604639585,-500.0,0.00016473,2]
[394463675,1763604639594,-11059.22641717,0.00016473,2]
[394463676,1763604639611,-336326.23118646,0.00016473,2]
[394463677,1763604639627,-134344.2194475,0.00016473,2]
[394463678,1763604639641,-169880.42693442,0.00016473,2]
[394463679,1763604639655,-1488.8736393,0.00016473,2]
[394463680,1763604639670,-106901.02237515,0.00016473,2]
[394463681,1763604639680,-804.18,0.000165,2]
[394463682,1763604639689,-166.66,0.00016518,2]
[394463683,1763604639699,-151.0,0.0001657,2]
[394463684,1763604639708,-151.0,0.0001657,2]
[394463685,1763604639718,-2500.0,0.00016571,2]
[394463686,1763604639727,-500.0,0.00016572,2]
[394463687,1763604639737,-500.0,0.00016572,2]
[394463688,1763604639754,-500.0,0.00016572,2]
[394463689,1763604639763,-500.0,0.00016572,2]
[394463690,1763604639773,-500.0,0.00016572,2]
[394463691,1763604639782,-555.26791659,0.00016572,2]
[394463692,1763604639792,-500.0,0.00016572,2]
[394463693,1763604639802,-500.0,0.00016572,2]
[394463694,1763604639811,-513.74041523,0.00016572,2]
[394463695,1763604639822,-363.26720897,0.00016572,2]
[394463696,1763604639833,-513.24258556,0.00016572,2]
[394463697,1763604639842,-23841.8117021,0.00016573,2]
[394463698,1763604639851,-103971.1516822,0.00016573,2]
[394463699,1763604639860,-40621.353471,0.00016573,2]
[394463700,1763604639870,-218.4537374,0.00016573,2]
[394463701,1763604639880,-151.0,0.00016573,2]
[394463702,1763604639890,-151.0,0.00016573,2]
[394463703,1763604639899,-151.0,0.00016573,2]
[394463704,1763604639908,-158.528311,0.00016573,2]
[394463705,1763604639917,-171.726203,0.00016573,2]
[394463706,1763604639927,-151.0,0.00016573,2]
[394463707,1763604639936,-171.726203,0.00016573,2]
[394463708,1763604639945,-171.726203,0.00016573,2]
[394463709,1763604639955,-171.726203,0.00016573,2]
[394463710,1763604639973,-151.0,0.00016573,2]
[394463711,1763604639984,-2194.88473,0.00016573,2]
[394463712,1763604639994,-469.4491505,0.00016583,2]
[394463713,1763604640003,-151.0,0.00016661,2]
[394463714,1763604640012,-151.0,0.00016661,2]
[394463715,1763604640022,-151.0,0.00016661,2]
[394463716,1763604640032,-151.0,0.00016661,2]
[394463717,1763604640041,-151.0,0.00016661,2]
[394463718,1763604640051,-151.0,0.00016661,2]
[394463719,1763604640060,-151.0,0.00016661,2]
[394463720,1763604640069,-151.0,0.00016661,2]
[394463721,1763604640078,-151.0,0.00016661,2]
[394463722,1763604640087,-151.0,0.00016661,2]
[394463723,1763604640097,-151.0,0.00016661,2]
[394463724,1763604640106,-151.0,0.00016661,2]
[394463725,1763604640115,-151.0,0.00016661,2]
[394463726,1763604640126,-151.0,0.00016661,2]
[394463727,1763604640135,-151.0,0.00016661,2]
[394463728,1763604640145,-151.0,0.00016661,2]
[394463729,1763604640154,-155.41844459,0.00016661,2]
[394463730,1763604640167,-245.32972085,0.00016668,2]
[394463731,1763604640178,-500.0,0.0001667,2]
[394463732,1763604640188,-500.0,0.0001667,2]
[394463733,1763604640198,-158.916773,0.0001667,2]
[394463734,1763604640207,-151.0,0.0001667,2]
[394463735,1763604640216,-500.0,0.0001667,2]
[394463736,1763604640227,-500.0,0.0001667,2]
[394463737,1763604640239,-621.53493897,0.0001667,2]
[394463738,1763604640248,-500.0,0.0001667,2]
[394463739,1763604640258,-500.0,0.0001667,2]
[394463740,1763604640267,-2444.5731157,0.00016671,2]
[394463741,1763604640276,-135440.93122707,0.00016671,2]
[394463742,1763604640292,-545.44734142,0.00016671,2]
[394463743,1763604640310,-9920.72629522,0.00016671,2]
[394463744,1763604640323,-5346.912,0.00016671,2]
[394463745,1763604640334,-5004.35725198,0.00016671,2]
[394463746,1763604640345,-3251.415,0.00016671,2]
[394463747,1763604640356,-1174.35908992,0.00016671,2]
[394463765,1763604644204,-766.36239535,0.00016671,2]
[394463766,1763604644215,-641.99246739,0.00016671,2]
[394463768,1763604646018,999.0,0.00016371,3]
[394463773,1763604646409,-1636.41431988,0.00016671,2]
[394463774,1763604646422,-3770.10260755,0.00016671,2]
[394463775,1763604646434,-3195.42717717,0.00016671,2]
[394463776,1763604646566,-1587.03359657,0.00016671,2]
[394463777,1763604646577,-596.152,0.00016671,2]
[394463778,1763604646672,-6126.44423413,0.00016671,2]
[394463779,1763604646684,-255.75,0.00016671,2]
[394463780,1763604646780,-403.2039331,0.00016671,2]
[394463784,1763604768571,1594.92,0.00015885,2]
[394463791,1763604892684,201.4,0.00032876,120]
[394463794,1763605030219,500.0,0.00042041,120]
[394463795,1763605030475,500.0,0.00042041,120]
[394463796,1763605030717,500.0,0.00042041,120]
[394463797,1763605030944,500.0,0.00042041,120]
[394463798,1763605031225,500.0,0.00042041,120]
[394463799,1763605031480,500.0,0.00042041,120]
[394463800,1763605031739,500.0,0.00042041,120]
[394463801,1763605031994,500.0,0.00042041,120]
[394463802,1763605032225,505.97474927,0.00042041,120]
[394463803,1763605036693,150.0,0.00015726,2]
[394463804,1763605061329,401.15923318,0.00042033,120]
[394463805,1763605073905,500.0,0.000166,3]
[394463807,1763605172051,1000.0,0.00015628,2]
[394463808,1763605174110,13352.0,0.00042033,30]
[394463971,1763605325922,608.31,0.00015613,2]
[394463972,1763605328783,-547.89462719,0.000162,2]
[394463973,1763605328806,-1132.50877993,0.00016233,2]
[394463974,1763605328833,-375.5593204,0.00016273,2]
[394463975,1763605328857,-2392.69767902,0.00016273,2]
[394463976,1763605328880,-250.0,0.00016273,2]
[394463977,1763605328903,-170.42,0.00016273,2]
[394463978,1763605328926,-300.0,0.00016369,2]
[394463979,1763605328951,-1200.0,0.00016369,2]
[394463980,1763605328974,-1200.0,0.0001637,2]
[394463981,1763605329002,-500.0,0.00016371,2]
[394463982,1763605329028,-204.98040889,0.00016371,2]
[394463983,1763605329058,-500.0,0.00016371,2]
[394463984,1763605329088,-500.0,0.00016371,2]
[394463985,1763605329117,-500.0,0.00016371,2]
[394463986,1763605329144,-500.0,0.00016371,2]
[394463987,1763605329171,-500.0,0.00016371,2]
[394463988,1763605329198,-500.0,0.00016371,2]
[394463989,1763605329226,-191.58249894,0.00016371,2]
[394463990,1763605329249,-541.35177008,0.00016371,2]
[394463991,1763605329272,-850.76,0.00016371,2]
[394463992,1763605329295,-850.76,0.00016371,2]
[394463993,1763605329318,-850.76,0.00016371,2]
[394463994,1763605329340,-698.259,0.00016371,2]
[394463995,1763605329364,-305.20201511,0.00016372,2]
[394463996,1763605329387,-455.39418419,0.00016372,2]
[394463997,1763605329412,-244.7605354,0.00016372,2]
[394463998,1763605329440,-723737.10918085,0.00016372,2]
[394463999,1763605336223,379.40680141,0.00042033,120]
[394464000,1763605340852,300.0,0.000171,6]
[394464001,1763605342948,600.0,0.000172,6]
[394464002,1763605345058,900.0,0.000173,6]
[394464003,1763605347143,1200.0,0.000174,6]
[394464016,1763605424487,500.0,0.00016093,2]
[394464017,1763605490804,281.0,0.00032877,120]
[394464018,1763605512062,4840.41505359,0.00042034,30]
[394464019,1763605512300,389.02089106,0.00042034,120]
[394464020,1763605519390,210.54117599,0.00042034,120]
[394464021,1763605526686,105993.03323288,0.00042034,30]
[394464023,1763605541756,164.23252055,0.00042034,30]
[394464024,1763605545366,151.81427421,0.00042034,120]
[394464025,1763605555291,923.58714783,0.00042034,120]
[394464026,1763605558532,177.83632341,0.00042034,90]
[394464027,1763605562361,302.53778834,0.00042034,120]
[394464028,1763605569417,380.0732425,0.00042034,120]
[394464029,1763605572083,500.86191298,0.00042034,120]
[394464031,1763605613784,740.16258858,0.00042034,120]
[394464034,1763605640636,500.0,0.00042034,120]
[394464035,1763605640874,500.0,0.00042034,120]
[394464036,1763605641101,500.0,0.00042034,120]
[394464037,1763605641346,500.0,0.00042034,120]
[394464038,1763605641935,500.0,0.00042034,120]
[394464039,1763605642171,500.0,0.00042034,120]
[394464040,1763605642410,500.0,0.00042034,120]
[394464041,1763605642688,500.0,0.00042034,120]
[394464042,1763605642940,500.0,0.00042034,120]
[394464043,1763605643198,500.0,0.00042034,120]
[394464044,1763605643452,500.0,0.00042034,120]
[394464045,1763605643700,552.57102441,0.00042034,120]
[394464047,1763605646990,290.41484574,0.00042034,120]
[394464048,1763605651312,347.86827002,0.00042034,120]
[394464053,1763605664081,291.65502548,0.00042034,120]
[394464054,1763605666321,6899.43469245,0.00042034,120]
[394464055,1763605678555,155.08435708,0.00042034,120]
[394464057,1763605683580,573.52621292,0.000315,120]
[394464059,1763605684578,811.72,0.00015558,2]
[394464062,1763605694143,10579.37359377,0.00042034,30]
[394464063,1763605697619,151.93929508,0.00042034,120]
[394464064,1763605699853,373.52110351,0.00042034,120]
[394464065,1763605700018,362.63126976,0.00042034,120]
[394464066,1763605702351,1311.18867836,0.00042034,120]
[394464067,1763605702390,2571.89914539,0.00042034,30]
[394464069,1763605704701,451.96870841,0.00042034,120]
[394464070,1763605705264,1424.8804074,0.00042034,120]
[394464071,1763605705956,153.37677171,0.00042034,30]
[394464072,1763605707617,255.68446428,0.00042034,120]
[394464073,1763605709397,195.76514931,0.00042034,120]
[394464075,1763605715225,222.3934328,0.00042034,60]
[394464078,1763605717495,160.89468199,0.00042034,30]
[394464079,1763605717646,150.72212182,0.00032,120]
[394464080,1763605717722,3273.3225202,0.00042034,30]
[394464081,1763605717756,484.35203011,0.00042034,30]
[394464082,1763605718186,6529.60367589,0.00042034,30]
[394464083,1763605719088,383.03911638,0.00042034,120]
[394464085,1763605721308,207.57429662,0.00042034,120]
[394464088,1763605785799,667.08759613,0.00016099,2]
[394464100,1763605831586,-455.652496,0.00016199,2]
[394464101,1763605831597,-33.347504,0.00016199,2]
[394464102,1763605831606,-300.0,0.00016199,2]
[394464103,1763605831615,-300.0,0.00016199,2]
[394464104,1763605831624,-1200.0,0.00016199,2]
[394464105,1763605831634,-300.0,0.00016199,2]
[394464106,1763605831643,-150.0,0.000162,2]
[394464107,1763605831652,-150.0,0.000162,2]
[394464108,1763605831662,-150.0,0.000162,2]
[394464109,1763605831672,-150.0,0.000162,2]
[394464110,1763605831681,-150.0,0.000162,2]
[394464111,1763605831690,-150.0,0.000162,2]
[394464112,1763605831699,-152.09254433,0.000162,2]
[394464113,1763605831708,-150.0,0.000162,2]
[394464114,1763605831717,-152.95383245,0.000162,2]
[394464115,1763605831726,-150.0,0.000162,2]
[394464116,1763605831736,-153.6380904,0.000162,2]
[394464117,1763605831746,-150.0,0.000162,2]
[394464118,1763605831755,-980.647817,0.000162,2]
[394464119,1763605831764,-200.0,0.0001624,2]
[394464120,1763605831773,-200.0,0.00016241,2]
[394464121,1763605831782,-280.4614,0.00016272,2]
[394464122,1763605831791,-222.41932101,0.00016276,2]
[394464123,1763605831801,-667.08759612,0.00016335,2]
[394464124,1763605831810,-150.0,0.00016338,2]
[394464125,1763605831819,-151.0,0.00016351,2]
[394464126,1763605831829,-550.0,0.00016353,2]